[Event "AI Cup Div-3 2023"]
[Site "Online"]
[Date "2023.09.25"]
[Round "51.2"]
[White "Maghsoodloo, Parham"]
[Black "Demchenko, Anton"]
[Result "0-1"]
[Annotator "TA"]
[ECO "A54"]
[WhiteElo "2707"]
[BlackElo "2608"]
[PlyCount "96"]
[EventDate "2023.09.18"]
[EventType "k.o."]
[EventCountry "NET"]
[SourceTitle "playchess.com"]
[Source "ChessBase"]
[SourceQuality "1"]
[TimeControl "900+3"]

{[%evp 11,96,60,62,52,50,34,40,48,54,37,42,41,52,18,21,17,25,0,7,14,41,0,16,0,0,0,0,-2,13,18,95,82,70,84,76,80,77,32,31,31,31,34,30,0,0,0,0,0,0,0,0,-29,0,0,0,0,0,0,0,0,0,0,0,0,0,-137,-120,-515,-431,-1592,-1337,-1896,-1764,-5693,-2610,-29985,-12793,-29986,-29987,-29987,-29988,-29993,-29994,-29994,-29995,-29995,-29996]} 1. d4 {[%emt 0:00:04]} Nf6 {[%emt 0:00:05]} 2. c4 {[%emt 0:00:01]} d6 {[%emt 0:00:00]} 3. Nc3 {[%emt 0:00:03]} e5 {[%emt 0:00:02]} 4. Nf3 {[%emt 0:00:01]} Nc6 {[%emt 0:00:01]} 5. d5 {[%emt 0:00:04]} Ne7 {[%emt 0:00:01]} 6. e4 {[%emt 0:00:02]} Ng6 {[%emt 0:00:00] 6...Ng6 scores better than 6...g6.} 7. h3 {[%emt 0:00:10] A54: Old Indian Defence with Nf3, but without e4.} Be7 {[%emt 0:00:02]} 8. Be3 {[%emt 0:00:03]} O-O {[%emt 0:00:03]} 9. g3 {[%emt 0:00:05] White is slightly better.} c6 {[%emt 0:00:11] [#]} 10. Bg2 $146 {[%emt 0:00:06]} ({Predecessor:} 10. Bd3 Bd7 11. Kf1 cxd5 12. cxd5 b5 13. Kg2 b4 14. Nb1 Qb8 15. Nbd2 Bd8 16. Nc4 {0-1 Gretarsson,H (2401)-Demchenko,A (2641) EU-ch Online 2300+ Qual 2020 (2)}) 10... cxd5 {[%emt 0:00:06]} 11. cxd5 {[%emt 0:00:08]} b5 {[%emt 0:00:03]} 12. a3 {[%emt 0:00:01]} ({Reject} 12. Nxb5 Qa5+ 13. Nc3 Nxe4 $17) (12. Nd2 $5 {[%cal Rc3b5]}) 12... Bd7 {[%emt 0:00:12]} 13. O-O {[%emt 0:00:04]} Qb8 {[%emt 0:00:11]} 14. Qb3 {[%emt 0:00:17]} a5 {[%emt 0:00:22]} 15. Nd2 {[%emt 0:00:05]} Rc8 {[%emt 0:00:46]} 16. Rfc1 {[%emt 0:00:18]} Bd8 {[%emt 0:00:01]} 17. Bf1 {[%emt 0:00:14][%cal Rc3b5]} a4 {[%emt 0:00:06]} 18. Qd1 {[%emt 0:00:07]} Bb6 {[%emt 0:00:56]} 19. Qf3 {[%emt 0:00:11]} Bxe3 {[%emt 0:00:06]} 20. Qxe3 {[%emt 0:00:01]} b4 {[%emt 0:00:10]} (20... h5 $11) 21. Na2 $16 {[%emt 0:00:25]} ({Don't play} 21. axb4 $6 Qxb4 22. Rc2 Qd4 $11) 21... bxa3 {[%emt 0:00:34]} 22. bxa3 {[%emt 0:00:01]} Rxc1 {[%emt 0:00:24]} 23. Rxc1 {[%emt 0:00:01]} h5 {[%emt 0:00:09]} 24. Nb4 {[%emt 0:00:16]} h4 {[%emt 0:00:14]} 25. Nc4 {[%emt 0:00:46]} hxg3 {[%emt 0:00:06]} 26. fxg3 {[%emt 0:00:01]} Ne7 {[%emt 0:01:20] Repels Nc6} 27. g4 {[%emt 0:04:20]} Bb5 {[%emt 0:05:39]} 28. Nb6 {[%emt 0:00:15]} Ra5 {[%emt 0:00:39][%cal Of6e4,Ba8a5,Ba5d5,Bd5d1,Bd1d6,Bd6d3][%mdl 32]} 29. Nc6 {[%emt 0:01:02]} Bxc6 {[%emt 0:00:01]} 30. dxc6 {[%emt 0:00:00]} Qc7 {[%emt 0:00:01]} 31. Rc4 {[%emt 0:01:13]} d5 {[%emt 0:01:18]} (31... Rb5 {simplifies} 32. Nxa4 Nxc6 33. Kg2 Qb7) 32. exd5 {[%emt 0:00:06]} Nfxd5 {[%emt 0:00:01]} 33. Nxd5 {[%emt 0:00:01]} Rxd5 {[%emt 0:00:15]} 34. Bg2 {[%emt 0:00:14]} Rd1+ {[%emt 0:00:18]} 35. Kf2 {[%emt 0:00:56]} Rd6 {[%emt 0:00:54]} 36. Be4 {[%emt 0:02:05][%cal Oe3c5]} Nd5 {[%emt 0:00:32]} 37. Qc5 {[%emt 0:00:33]} Nf6 {[%emt 0:00:24]} 38. Bf5 {[%emt 0:00:39] [#]} (38. Qxe5 $2 {perishes.} Rd2+ 39. Ke3 Qxe5 $19) (38. Rxa4 $11 {remains equal.} Nxe4+ 39. Rxe4) 38... e4 $1 $17 {[%emt 0:00:12]} 39. Ke1 {[%emt 0:01:32][%mdl 8192] Inhibits Rd2. Now White is beyond hope.} (39. Bxe4 $17 {was the crucial defense.} Rd2+ 40. Ke1) 39... Rd3 {[%emt 0:00:07] aiming for ...Qh2.} 40. Qf2 {[%emt 0:00:06] Prevents Qh2} (40. Rxa4 $142 Rd8 41. Qe3) 40... Rxa3 $19 {[%emt 0:00:17] ...Ra1+ is the strong threat.} 41. Rc1 {[%emt 0:00:07] Inhibits Ra1.} g6 {[%emt 0:00:04][%cal Oa3h3] Strongly threatening ...Rxh3!} 42. g5 {[%emt 0:00:04]} Nd5 {[%emt 0:00:03]} (42... Rf3 $142 43. Qe2 Qg3+ 44. Kd1 Rxf5) 43. Bg4 {[%emt 0:00:04]} Nf4 {[%emt 0:00:04]} (43... e3 $142 44. Qf3 Nf4 45. Rd1 Qa5+ 46. Kf1 e2+ {[%mdl 64] Discovered Attack} 47. Qxe2 Nxe2 48. Bxe2 Qxg5 49. Rd3 Qf4+ 50. Rf3 Rxf3+ 51. Bxf3 Qxf3+ 52. Kg1 Qxc6 53. Kf2 a3 54. h4 a2 55. h5 Qc3 56. hxg6 fxg6 57. Kg2 a1=Q 58. Kh2 Qab2+ 59. Kh1 Qe1#) 44. Kf1 {[%emt 0:00:12]} Nd3 {[%emt 0:00:01] Black mates.} 45. Qe3 {[%emt 0:00:05]} Ra2 {[%emt 0:00:03]} 46. Rb1 {[%emt 0:00:07]} Qh2 {[%emt 0:00:03][%csl Ga2][%cal Rh2g2]} 47. Be2 {[%emt 0:00:04] [#]} Rxe2 $1 {[%emt 0:00:05][%csl Ge2][%cal Rh2g2][%mdl 576] Back Rank} 48. Rb8+ {[%emt 0:00:03]} Kh7 {[%emt 0:00:00] A cool game by Demchenko.   Weighted Error Value: White=1.00/Black=0.33} 0-1

[Event "AI Cup Div-3 2023"]
[Site "Online"]
[Date "2023.09.25"]
[Round "51.2"]
[White "Yilmaz, Mustafa"]
[Black "Radjabov, Teimour"]
[Result "1/2-1/2"]
[Annotator "TA"]
[ECO "E06"]
[WhiteElo "2640"]
[BlackElo "2745"]
[PlyCount "142"]
[EventDate "2023.09.18"]
[EventType "k.o."]
[EventCountry "NET"]
[SourceTitle "playchess.com"]
[Source "ChessBase"]
[SourceQuality "1"]
[TimeControl "900+3"]

{[%evp 18,142,11,29,26,16,18,8,10,10,14,0,-6,-4,1,0,4,0,4,6,26,0,0,0,0,0,0,0,17,-9,-7,-4,0,0,19,0,5,10,91,91,102,98,101,130,120,55,64,80,60,74,49,64,74,35,35,36,36,36,36,36,36,45,34,34,31,37,23,0,0,0,0,0,0,0,0,-1,-1,-454,-421,-355,0,0,0,0,0,0,0,0,0,0,0,0,0,0,0,0,0,0,0,0,0,0,0,0,0,0,0,0,0,0,0,0,0,0,0,0,0,0,0,0,0,0,0,0,0,0,0]} 1. c4 {[%emt 0:00:03]} Nf6 {[%emt 0:00:06]} 2. g3 {[%emt 0:00:02]} e6 {[%emt 0:00:02]} 3. Bg2 {[%emt 0:00:01]} d5 {[%emt 0:00:00]} 4. Nf3 {[%emt 0:00:00]} Be7 {[%emt 0:00:01]} 5. d4 {[%emt 0:00:04]} O-O {[%emt 0:00:01]} 6. Nc3 {[%emt 0:00:01]} dxc4 {[%emt 0:00:02]} 7. Ne5 {[%emt 0:00:01]} c5 {[%emt 0:00:09]} 8. dxc5 {[%emt 0:00:04]} Qxd1+ {[%emt 0:00:01]} 9. Nxd1 {[%emt 0:00:01]} Bxc5 {[%emt 0:00:00]} 10. O-O {[%emt 0:00:08]} Nc6 {[%emt 0:00:05] E06: Closed Catalan: Early deviations.} 11. Bxc6 {[%emt 0:00:03]} bxc6 {[%emt 0:00:01]} 12. Be3 {[%emt 0:00:01]} Bb6 {[%emt 0:00:12]} 13. Bxb6 {[%emt 0:00:08]} axb6 {[%emt 0:00:02]} 14. Nxc6 {[%emt 0:00:01]} Bb7 {[%emt 0:00:03]} 15. Nb4 {[%emt 0:00:01] [#] White is weak on the light squares} Rfc8 $146 {[%emt 0:00:24]} ({Predecessor:} 15... Nd5 16. Nxd5 Bxd5 17. Nc3 Bc6 18. Rfd1 Rfd8 19. f3 Kf8 20. Kf2 Ke7 21. Rxd8 Rxd8 {½-½ Goryachkina,A (2578)-Ju,W (2584) World-ch (Women) 2020 (1)}) 16. Nc3 {[%emt 0:00:04]} Kf8 {[%emt 0:00:01]} 17. f3 {[%emt 0:00:02]} Ke7 {[%emt 0:00:02]} 18. Rfd1 {[%emt 0:00:03][%cal Bf1d1,Bd1d4,Bd4h4][%mdl 32]} g5 {[%emt 0:00:16]} 19. Kf2 {[%emt 0:00:05]} (19. Rd4 $5 {[%cal Ra1d1]}) 19... g4 {[%emt 0:00:07]} 20. Rd4 {[%emt 0:00:15]} h5 {[%emt 0:00:23]} 21. Rad1 {[%emt 0:00:07]} gxf3 {[%emt 0:01:25]} 22. exf3 {[%emt 0:00:03]} Rab8 {[%emt 0:01:13]} 23. Rh4 {[%emt 0:02:27]} Rc5 {[%emt 0:00:09]} 24. Rdd4 {[%emt 0:00:03]} b5 {[%emt 0:00:15]} 25. a3 {[%emt 0:00:18]} Rg8 {[%emt 0:00:06]} 26. Rd2 {[%emt 0:00:16]} Rgg5 {[%emt 0:00:29]} 27. Nc2 {[%emt 0:00:04]} e5 {[%emt 0:00:36] Repels Nd4} (27... Rgf5 $11 {keeps the balance.}) 28. Ne3 $16 {[%emt 0:00:18]} Rg8 {[%emt 0:00:38]} 29. h3 {[%emt 0:01:52] Hoping for Nf5+. White is more active.} Bc8 {[%emt 0:05:55] Dodges Nf5+} 30. Ned5+ {[%emt 0:00:49]} Nxd5 {[%emt 0:00:03]} 31. Rxd5 {[%emt 0:03:16]} (31. Nxd5+ $16 Ke6 32. Nc3) 31... Rxd5 $14 {[%emt 0:00:05][%mdl 64] [#] Remove Defender} 32. Nxd5+ $16 {[%emt 0:00:00][%mdl 4096] Endgame KRB-KRN} Ke6 {[%emt 0:00:32]} 33. Nc7+ {[%emt 0:00:49]} Kf6 {[%emt 0:00:03]} 34. Nxb5 {[%emt 0:00:10]} Be6 {[%emt 0:00:03]} 35. Nc3 {[%emt 0:00:50]} (35. a4 $5 {[%cal Rh4h5]}) 35... Rb8 {[%emt 0:00:12]} 36. Nd1 {[%emt 0:00:01]} Kg6 {[%emt 0:01:07]} 37. Re4 {[%emt 0:00:07]} f6 {[%emt 0:00:02]} 38. h4 {[%emt 0:00:05]} c3 {[%emt 0:00:33]} 39. bxc3 {[%emt 0:00:14]} Rb1 {[%emt 0:00:04]} 40. Ne3 {[%emt 0:00:31]} Rb2+ {[%emt 0:00:38]} 41. Ke1 {[%emt 0:00:02] Rb4 would be deadly.} Rb3 {[%emt 0:00:13][%csl LRa3,LRc3]} 42. Ra4 {[%emt 0:00:37]} Rxc3 {[%emt 0:00:09]} 43. Kd2 {[%emt 0:00:01]} Rb3 {[%emt 0:00:04]} 44. Ra6 {[%emt 0:00:02]} Rb2+ {[%emt 0:00:06]} 45. Kd3 {[%emt 0:00:41]} (45. Kc3 $5 Rb3+ $8 46. Kd2 Rb2+ 47. Kd1 $11) 45... Rb3+ {[%emt 0:00:05]} 46. Ke4 {[%emt 0:00:01]} Bc8 {[%emt 0:00:09]} 47. Ra5 {[%emt 0:00:28][%mdl 8192]} (47. Rd6 $11) 47... Bb7+ $19 {[%emt 0:00:11]} 48. Nd5 {[%emt 0:00:01] [#]} Bxd5+ $2 {[%emt 0:00:01]} ({Better is} 48... Kf7 $1 $19 {[%cal Rf7e6] And now ...Ke6 would win.} 49. Kf5 Rxf3+ 50. Ke4 Rxg3) 49. Rxd5 $11 {[%emt 0:00:09] The position is equal.} Rxa3 $19 {[%emt 0:00:01] KR-KR} 50. Rd3 {[%emt 0:00:10]} Ra4+ {[%emt 0:00:11]} 51. Ke3 {[%emt 0:00:01]} Ra1 {[%emt 0:00:01]} 52. Rd8 {[%emt 0:00:03]} Ra3+ {[%emt 0:00:01]} 53. Rd3 {[%emt 0:00:03]} Ra1 {[%emt 0:00:02]} 54. Rb3 {[%emt 0:00:01]} Rg1 {[%emt 0:00:02]} 55. Kf2 {[%emt 0:00:01]} Rc1 {[%emt 0:00:01]} 56. Rb2 {[%emt 0:00:01]} Rc3 {[%emt 0:00:01]} 57. Re2 {[%emt 0:00:01]} Ra3 {[%emt 0:00:02]} 58. Rd2 {[%emt 0:00:00]} Rb3 {[%emt 0:00:01]} 59. Rd8 {[%emt 0:00:03]} Rb2+ {[%emt 0:00:01]} 60. Kf1 {[%emt 0:00:01]} Rb1+ {[%emt 0:00:01]} 61. Kf2 {[%emt 0:00:01]} Rb2+ {[%emt 0:00:01]} 62. Ke3 {[%emt 0:00:09]} Rb3+ {[%emt 0:00:01]} 63. Rd3 {[%emt 0:00:01]} Rxd3+ {[%emt 0:00:19]} 64. Kxd3 $11 {[%emt 0:00:03] K3P-K3P} f5 {[%emt 0:00:01]} 65. Kc4 {[%emt 0:00:36]} Kf7 {[%emt 0:00:03]} 66. Kc3 {[%emt 0:00:28]} Ke7 {[%emt 0:00:05]} 67. Kc4 {[%emt 0:00:25]} Kd6 {[%emt 0:00:05]} 68. Kd3 {[%emt 0:00:10]} Ke6 {[%emt 0:00:07]} 69. Kc4 {[%emt 0:00:05]} Kd6 {[%emt 0:00:05]} 70. Kd3 {[%emt 0:00:02]} Ke6 {[%emt 0:00:06]} 71. Kc4 {[%emt 0:00:01]} Kd6 {[%emt 0:00:01] Weighted Error Value: White=0.17 (very precise) /Black=0.13 (very precise)} 1/2-1/2

[Event "AI Cup Div-3 2023"]
[Site "Online"]
[Date "2023.09.25"]
[Round "51.2"]
[White "Guseinov, Gadir"]
[Black "Asadli, Vugar"]
[Result "1-0"]
[Annotator "ChessBase"]
[ECO "B30"]
[WhiteElo "2636"]
[BlackElo "2563"]
[PlyCount "79"]
[EventDate "2023.09.18"]
[EventType "k.o."]
[EventCountry "NET"]
[SourceTitle "playchess.com"]
[Source "ChessBase"]
[SourceQuality "1"]
[TimeControl "900+3"]

1. e4 {[%emt 0:00:03]} c5 {[%emt 0:00:05]} 2. Nc3 {[%emt 0:00:06]} Nc6 {[%emt 0:00:05]} 3. Nf3 {[%emt 0:00:07]} e5 {[%emt 0:00:05]} 4. Bc4 {[%emt 0:00:09]} d6 {[%emt 0:00:04]} 5. d3 {[%emt 0:00:05]} Be7 {[%emt 0:00:07]} 6. O-O {[%emt 0:00:04]} Nf6 {[%emt 0:00:07]} 7. Ng5 {[%emt 0:00:02]} O-O {[%emt 0:00:06]} 8. f4 {[%emt 0:00:01]} exf4 {[%emt 0:00:09]} 9. Bxf4 {[%emt 0:00:00]} h6 {[%emt 0:00:02]} 10. Nf3 {[%emt 0:00:02]} Be6 {[%emt 0:00:04]} 11. Nd5 {[%emt 0:00:13]} Bxd5 {[%emt 0:00:50]} 12. Bxd5 {[%emt 0:00:01]} Nxd5 {[%emt 0:00:53]} 13. exd5 {[%emt 0:00:01]} Nb8 {[%emt 0:00:14]} 14. Qe1 {[%emt 0:00:22]} Kh7 {[%emt 0:00:59]} 15. Qe4+ {[%emt 0:00:47]} f5 {[%emt 0:00:06]} 16. Qe2 {[%emt 0:00:54]} g5 {[%emt 0:01:17]} 17. Rae1 {[%emt 0:00:12]} Bf6 {[%emt 0:00:04]} 18. Bc1 {[%emt 0:00:42]} Nd7 {[%emt 0:02:33]} 19. Qe6 {[%emt 0:00:32]} Bg7 {[%emt 0:02:32]} 20. Qxd6 {[%emt 0:00:21]} g4 {[%emt 0:00:01]} 21. Nh4 {[%emt 0:02:38]} Qxh4 {[%emt 0:00:23]} 22. Qxd7 {[%emt 0:00:03]} Rad8 {[%emt 0:00:01]} 23. Qxb7 {[%emt 0:00:28]} Kh8 {[%emt 0:00:32]} 24. Bf4 {[%emt 0:00:42]} Rfe8 {[%emt 0:00:02]} 25. Re6 {[%emt 0:00:45]} Rxe6 {[%emt 0:00:13]} 26. dxe6 {[%emt 0:00:03]} Re8 {[%emt 0:00:01]} 27. Qd5 {[%emt 0:01:20]} Qf6 {[%emt 0:00:04]} 28. Re1 {[%emt 0:00:38]} Qxb2 {[%emt 0:00:01]} 29. Be5 {[%emt 0:00:45]} Bxe5 {[%emt 0:00:13]} 30. Qxe5+ {[%emt 0:00:01]} Qxe5 {[%emt 0:00:00]} 31. Rxe5 {[%emt 0:00:01]} f4 {[%emt 0:00:00]} 32. Kf2 {[%emt 0:00:43]} Kg7 {[%emt 0:00:01]} 33. Re4 {[%emt 0:00:13]} h5 {[%emt 0:00:03]} 34. h3 {[%emt 0:00:03]} Kg6 {[%emt 0:00:13]} 35. hxg4 {[%emt 0:00:03]} hxg4 {[%emt 0:00:00]} 36. Rxf4 {[%emt 0:00:01]} Rxe6 {[%emt 0:00:01]} 37. Rxg4+ {[%emt 0:00:01]} Kf5 {[%emt 0:00:00]} 38. Ra4 {[%emt 0:00:04]} Rb6 {[%emt 0:00:01]} 39. Ke3 {[%emt 0:00:11]} Rb2 {[%emt 0:00:03]} 40. Kd2 {[%emt 0:00:01]} 1-0

[Event "AI Cup Div-3 2023"]
[Site "Online"]
[Date "2023.09.25"]
[Round "51.2"]
[White "Sargsyan, Shant"]
[Black "Kravtsiv, Martyn"]
[Result "1/2-1/2"]
[Annotator "ChessBase"]
[ECO "C47"]
[WhiteElo "2631"]
[BlackElo "2598"]
[PlyCount "27"]
[EventDate "2023.09.18"]
[EventType "k.o."]
[EventCountry "NET"]
[SourceTitle "playchess.com"]
[Source "ChessBase"]
[SourceQuality "1"]
[TimeControl "900+3"]

1. e4 {[%emt 0:00:03]} e5 {[%emt 0:00:04]} 2. Nf3 {[%emt 0:00:01]} Nc6 {[%emt 0:00:01]} 3. Nc3 {[%emt 0:00:01]} Nf6 {[%emt 0:00:01]} 4. d4 {[%emt 0:00:01]} exd4 {[%emt 0:00:02]} 5. Nxd4 {[%emt 0:00:00]} Bb4 {[%emt 0:00:01]} 6. Nxc6 {[%emt 0:00:00]} bxc6 {[%emt 0:00:00]} 7. Bd3 {[%emt 0:00:01]} O-O {[%emt 0:00:01]} 8. O-O {[%emt 0:00:01]} d5 {[%emt 0:00:02]} 9. exd5 {[%emt 0:00:00]} cxd5 {[%emt 0:00:00]} 10. Qf3 {[%emt 0:00:01]} c6 {[%emt 0:00:23]} 11. Bg5 {[%emt 0:00:00]} Bd6 {[%emt 0:00:23]} 12. Bxf6 {[%emt 0:00:02]} Qxf6 {[%emt 0:00:03]} 13. Qxf6 {[%emt 0:00:00]} gxf6 {[%emt 0:00:00]} 14. Rad1 {[%emt 0:00:01]} 1/2-1/2

[Event "AI Cup Div-3 2023"]
[Site "Online"]
[Date "2023.09.25"]
[Round "51.2"]
[White "Kovalev, Vladislav"]
[Black "Makarian, Rudik"]
[Result "1-0"]
[Annotator "ChessBase"]
[ECO "C67"]
[WhiteElo "2582"]
[BlackElo "2548"]
[PlyCount "91"]
[EventDate "2023.09.18"]
[EventType "k.o."]
[EventCountry "NET"]
[SourceTitle "playchess.com"]
[Source "ChessBase"]
[SourceQuality "1"]
[TimeControl "900+3"]

1. e4 {[%emt 0:00:03]} e5 {[%emt 0:00:24]} 2. Nf3 {[%emt 0:00:02]} Nc6 {[%emt 0:00:01]} 3. Bb5 {[%emt 0:00:02]} Nf6 {[%emt 0:00:00]} 4. O-O {[%emt 0:00:01]} Nxe4 {[%emt 0:00:01]} 5. Re1 {[%emt 0:00:01]} Nd6 {[%emt 0:00:01]} 6. Nxe5 {[%emt 0:00:00]} Be7 {[%emt 0:00:00]} 7. Bf1 {[%emt 0:00:00]} Nxe5 {[%emt 0:00:01]} 8. Rxe5 {[%emt 0:00:00]} O-O {[%emt 0:00:01]} 9. d4 {[%emt 0:00:01]} Bf6 {[%emt 0:00:00]} 10. Re1 {[%emt 0:00:00]} Re8 {[%emt 0:00:01]} 11. c3 {[%emt 0:00:02]} Rxe1 {[%emt 0:00:01]} 12. Qxe1 {[%emt 0:00:00]} Ne8 {[%emt 0:00:00]} 13. a4 {[%emt 0:00:01]} a5 {[%emt 0:00:03]} 14. d5 {[%emt 0:00:15]} d6 {[%emt 0:00:14]} 15. Nd2 {[%emt 0:00:30]} Bf5 {[%emt 0:00:07]} 16. Ne4 {[%emt 0:00:09]} Bxe4 {[%emt 0:00:02]} 17. Qxe4 {[%emt 0:00:00]} g6 {[%emt 0:00:00]} 18. Bb5 {[%emt 0:00:44]} Ng7 {[%emt 0:00:02]} 19. Bd2 {[%emt 0:00:37]} Qe7 {[%emt 0:00:11]} 20. Qc4 {[%emt 0:00:39]} g5 {[%emt 0:00:36]} 21. Re1 {[%emt 0:00:17]} Be5 {[%emt 0:00:01]} 22. g3 {[%emt 0:00:24]} Qd8 {[%emt 0:00:29]} 23. Qg4 {[%emt 0:01:56]} h6 {[%emt 0:00:06]} 24. f4 {[%emt 0:01:15]} f5 {[%emt 0:00:03]} 25. Qh3 {[%emt 0:00:08]} gxf4 {[%emt 0:00:04]} 26. gxf4 {[%emt 0:00:00]} Bf6 {[%emt 0:00:02]} 27. Qxh6 {[%emt 0:00:02]} Kf7 {[%emt 0:00:04]} 28. Re3 {[%emt 0:01:44]} Qh8 {[%emt 0:00:05]} 29. Qxh8 {[%emt 0:00:11]} Rxh8 {[%emt 0:00:01]} 30. Kg2 {[%emt 0:00:01]} Rh4 {[%emt 0:00:03]} 31. Rh3 {[%emt 0:00:14]} Rg4+ {[%emt 0:00:01]} 32. Rg3 {[%emt 0:00:03]} Rh4 {[%emt 0:00:01]} 33. Rh3 {[%emt 0:01:01]} Rg4+ {[%emt 0:00:02]} 34. Kf1 {[%emt 0:00:00]} Kg6 {[%emt 0:00:07]} 35. Rh8 {[%emt 0:01:15]} Rh4 {[%emt 0:00:10]} 36. Rxh4 {[%emt 0:00:01]} Bxh4 {[%emt 0:00:00]} 37. b4 {[%emt 0:00:24]} axb4 {[%emt 0:00:06]} 38. cxb4 {[%emt 0:00:00]} Bf6 {[%emt 0:00:00]} 39. Ke2 {[%emt 0:00:10]} Bd4 {[%emt 0:00:03]} 40. Kd3 {[%emt 0:00:12]} Bg1 {[%emt 0:00:01]} 41. a5 {[%emt 0:00:06]} Kf7 {[%emt 0:00:02]} 42. Bd7 {[%emt 0:00:14]} Bxh2 {[%emt 0:00:08]} 43. b5 {[%emt 0:00:14]} Ke7 {[%emt 0:00:07]} 44. a6 {[%emt 0:00:10]} bxa6 {[%emt 0:00:00]} 45. bxa6 {[%emt 0:00:00]} Bg1 {[%emt 0:00:03]} 46. Be3 {[%emt 0:00:12]} 1-0

[Event "AI Cup Div-3 2023"]
[Site "Online"]
[Date "2023.09.25"]
[Round "51.2"]
[White "Le, Tuan Minh"]
[Black "Matlakov, Maxim"]
[Result "1/2-1/2"]
[Annotator "ChessBase"]
[ECO "D14"]
[WhiteElo "2559"]
[BlackElo "2674"]
[PlyCount "35"]
[EventDate "2023.09.18"]
[EventType "k.o."]
[EventCountry "NET"]
[SourceTitle "playchess.com"]
[Source "ChessBase"]
[SourceQuality "1"]
[TimeControl "900+3"]

1. d4 {[%emt 0:00:03]} d5 {[%emt 0:00:06]} 2. Nf3 {[%emt 0:00:01]} Nf6 {[%emt 0:00:03]} 3. Bf4 {[%emt 0:00:00]} c5 {[%emt 0:00:07]} 4. c3 {[%emt 0:00:01]} cxd4 {[%emt 0:00:05]} 5. cxd4 {[%emt 0:00:01]} Nc6 {[%emt 0:00:01]} 6. Nc3 {[%emt 0:00:00]} a6 {[%emt 0:00:01]} 7. e3 {[%emt 0:00:00]} Bf5 {[%emt 0:00:06]} 8. Bd3 {[%emt 0:00:01]} Bxd3 {[%emt 0:00:05]} 9. Qxd3 {[%emt 0:00:00]} e6 {[%emt 0:00:00]} 10. O-O {[%emt 0:00:01]} Be7 {[%emt 0:00:38]} 11. Rfc1 {[%emt 0:00:02]} O-O {[%emt 0:00:07]} 12. Ne5 {[%emt 0:00:03]} Nxe5 {[%emt 0:00:35]} 13. Bxe5 {[%emt 0:00:00]} Nd7 {[%emt 0:00:01]} 14. Bg3 {[%emt 0:00:01]} Rc8 {[%emt 0:00:03]} 15. Ne2 {[%emt 0:00:01]} Qa5 {[%emt 0:00:13]} 16. h3 {[%emt 0:00:04]} h6 {[%emt 0:00:11]} 17. a3 {[%emt 0:00:12]} b5 {[%emt 0:01:27]} 18. Rc2 {[%emt 0:00:06]} 1/2-1/2

[Event "AI Cup Div-3 2023"]
[Site "Online"]
[Date "2023.09.25"]
[Round "51.2"]
[White "Kobo, Ori"]
[Black "Chigaev, Maksim"]
[Result "1/2-1/2"]
[Annotator "ChessBase"]
[ECO "C84"]
[WhiteElo "2551"]
[BlackElo "2615"]
[PlyCount "120"]
[EventDate "2023.09.18"]
[EventType "k.o."]
[EventCountry "NET"]
[SourceTitle "playchess.com"]
[Source "ChessBase"]
[SourceQuality "1"]
[TimeControl "900+3"]

1. e4 {[%emt 0:00:05]} e5 {[%emt 0:00:04]} 2. Nf3 {[%emt 0:00:01]} Nc6 {[%emt 0:00:01]} 3. Bb5 {[%emt 0:00:01]} a6 {[%emt 0:00:00]} 4. Ba4 {[%emt 0:00:00]} Nf6 {[%emt 0:00:01]} 5. O-O {[%emt 0:00:01]} Be7 {[%emt 0:00:00]} 6. d3 {[%emt 0:00:01]} d6 {[%emt 0:00:01]} 7. c3 {[%emt 0:00:02]} O-O {[%emt 0:00:01]} 8. Re1 {[%emt 0:00:02]} Re8 {[%emt 0:00:00]} 9. h3 {[%emt 0:00:05]} h6 {[%emt 0:00:01]} 10. Nbd2 {[%emt 0:00:13]} Bf8 {[%emt 0:00:02]} 11. Nf1 {[%emt 0:00:02]} b5 {[%emt 0:00:01]} 12. Bc2 {[%emt 0:00:07]} d5 {[%emt 0:00:01]} 13. exd5 {[%emt 0:00:08]} Qxd5 {[%emt 0:00:03]} 14. a4 {[%emt 0:00:47]} Bb7 {[%emt 0:01:12]} 15. Ng3 {[%emt 0:00:42]} b4 {[%emt 0:00:27]} 16. a5 {[%emt 0:00:45]} Rad8 {[%emt 0:00:32]} 17. Qe2 {[%emt 0:00:37]} b3 {[%emt 0:02:12]} 18. Bb1 {[%emt 0:00:03]} Qb5 {[%emt 0:00:15]} 19. Bd2 {[%emt 0:00:24]} Bc8 {[%emt 0:02:34]} 20. Qf1 {[%emt 0:01:11]} Be6 {[%emt 0:01:11]} 21. Be3 {[%emt 0:00:17]} Qb7 {[%emt 0:01:46]} 22. Ne4 {[%emt 0:02:13]} Be7 {[%emt 0:01:26]} 23. Nc5 {[%emt 0:00:39]} Bxc5 {[%emt 0:00:07]} 24. Bxc5 {[%emt 0:00:00]} Bf5 {[%emt 0:00:17]} 25. d4 {[%emt 0:01:25]} Bxb1 {[%emt 0:00:07]} 26. Raxb1 {[%emt 0:00:14]} exd4 {[%emt 0:00:05]} 27. Nxd4 {[%emt 0:00:08]} Nxa5 {[%emt 0:00:17]} 28. Be7 {[%emt 0:00:20]} Rxd4 {[%emt 0:00:30]} 29. cxd4 {[%emt 0:00:10]} Nd5 {[%emt 0:01:08]} 30. Bc5 {[%emt 0:00:39]} Rxe1 {[%emt 0:00:28]} 31. Rxe1 {[%emt 0:00:09]} Qb5 {[%emt 0:00:01]} 32. Ra1 {[%emt 0:01:19]} Qxf1+ {[%emt 0:01:17]} 33. Kxf1 {[%emt 0:00:00]} Nc4 {[%emt 0:00:00]} 34. Rxa6 {[%emt 0:00:29]} Nxb2 {[%emt 0:00:01]} 35. Ra8+ {[%emt 0:00:34]} Kh7 {[%emt 0:00:02]} 36. Rb8 {[%emt 0:00:48]} Nc4 {[%emt 0:00:01]} 37. Ke2 {[%emt 0:00:26]} b2 {[%emt 0:00:17]} 38. Kd3 {[%emt 0:00:19]} Ndb6 {[%emt 0:00:15]} 39. Kc2 {[%emt 0:00:11]} Na4 {[%emt 0:00:05]} 40. Rb7 {[%emt 0:00:41]} Kg6 {[%emt 0:00:05]} 41. Bb4 {[%emt 0:00:16]} c6 {[%emt 0:00:04]} 42. Rc7 {[%emt 0:00:04]} Kf5 {[%emt 0:00:01]} 43. Rxc6 {[%emt 0:00:05]} Nab6 {[%emt 0:00:01]} 44. f3 {[%emt 0:00:10]} f6 {[%emt 0:00:01]} 45. Bc5 {[%emt 0:00:05]} Nd5 {[%emt 0:00:05]} 46. Bf8 {[%emt 0:00:11]} g5 {[%emt 0:00:03]} 47. g4+ {[%emt 0:00:04]} Kf4 {[%emt 0:00:01]} 48. Rxc4 {[%emt 0:00:04]} Ne3+ {[%emt 0:00:01]} 49. Kxb2 {[%emt 0:00:01]} Nxc4+ {[%emt 0:00:00]} 50. Kc3 {[%emt 0:00:01]} Ne3 {[%emt 0:00:02]} 51. Bxh6 {[%emt 0:00:06]} Kxf3 {[%emt 0:00:03]} 52. Kd3 {[%emt 0:00:06]} Nd5 {[%emt 0:00:09]} 53. Kc4 {[%emt 0:00:05]} Ke4 {[%emt 0:00:01]} 54. Bg7 {[%emt 0:00:03]} f5 {[%emt 0:00:07]} 55. gxf5 {[%emt 0:00:01]} Ne3+ {[%emt 0:00:02]} 56. Kc5 {[%emt 0:00:01]} Nxf5 {[%emt 0:00:00]} 57. Bf6 {[%emt 0:00:03]} g4 {[%emt 0:00:08]} 58. hxg4 {[%emt 0:00:06]} Nxd4 {[%emt 0:00:00]} 59. Bxd4 {[%emt 0:00:05]} Kf4 {[%emt 0:00:01]} 60. g5 {[%emt 0:00:01]} Kxg5 {[%emt 0:00:00]} 1/2-1/2